Cogmind - Beta 15 @@@ ROGUE MODE // 2025.05.18 @ 21:56:52 Player: Figgis Result: Self-destructed Performance ------------- Evolutions (0) 0 Regions Visited (4) 800 Robots Destroyed (9) 45 Value Destroyed (223) 223 Prototype IDs (0) 0 Alien Tech Used (0) 0 Bonus (300) 300 TOTAL SCORE: 1368 Bonus ------- Registered with UFD 300 Cogmind --------- Core Integrity 146/250 Matter 272/300 Energy 250/250 System Corruption 0% Temperature Cool (0) Movement Treading (160) Location -7/Scraptown Parts ------- > --- POWER (1) -------- Ion Engine > --- PROPULSION (2) --- Light Treads Light Treads > --- UTILITY (2) ------ Large Storage Unit > --- WEAPON (2) ------- Assault Rifle Chainsword > --- INVENTORY (15) --- Ion Engine Light Treads Scrap Suit Small Storage Unit Improved Medium Armor Plating System Restoration Module EM Pulse Gun Medium Laser Datajack Peak State ------------ > --- POWER ------------ Ion Engine > --- PROPULSION ------- Light Treads Light Treads > --- UTILITY ---------- Large Storage Unit Improved Shield Generator > --- WEAPON ----------- Assault Rifle Chainsword > --- INVENTORY -------- Ion Engine Light Treads Scrap Suit Small Storage Unit Improved Medium Armor Plating System Restoration Module EM Pulse Gun Medium Laser Datajack [Rating: 15] Favorites ----------- Power Ion Engine Engine Ion Engine Propulsion Light Treads Treads Light Treads Utility Small Storage Unit Device Improved Shield Generator Storage Small Storage Unit Protection Light Armor Plating Weapon Assault Rifle Energy Gun Medium Laser Ballistic Gun Assault Rifle Slashing Weapon Chainsword Special Melee Weapon Datajack Build | -11 -10 -10 -10 -7 ------- Run | Yrd Mat Min Sub Scr Slots Evolved . | . . . . . Power . | . . . . . Propulsion . | . . . . . Utility . | . . . . . Weapon . | . . . . . Parts Attached 12 | 6 1 . 2 3 Power 1 | 1 . . . . Engine 1 | 1 . . . . Core . | . . . . . Reactor . | . . . . . Propulsion 2 | 2 . . . . Treads 2 | 2 . . . . Leg . | . . . . . Wheel . | . . . . . Hover . | . . . . . Flight . | . . . . . Utility 4 | 1 1 . . 2 Device 1 | . . . . 1 Storage 2 | 1 . . . 1 Processor . | . . . . . Hackware . | . . . . . Protection 1 | . 1 . . . Artifact . | . . . . . Weapon 5 | 2 . . 2 1 Energy Gun 2 | 1 . . 1 . Energy Cannon . | . . . . . Ballistic Gun 1 | 1 . . . . Ballistic Cannon . | . . . . . Launcher . | . . . . . Special Weapon . | . . . . . Impact Weapon . | . . . . . Slashing Weapon 1 | . . . . 1 Piercing Weapon . | . . . . . Special Melee Weapon 1 | . . . 1 . Unidentified Prototypes . | . . . . . Parts Lost 2 | . . 1 . 1 Power . | . . . . . Propulsion . | . . . . . Utility 2 | . . 1 . 1 Weapon . | . . . . . Highest Loss Streak 1 | . . 1 . 1 To Critical Strikes . | . . . . . Average Backups 5 | 2 2 4 5 6 Power 1 | 1 1 1 1 1 Propulsion . | . . 1 1 1 Utility 1 | . . . 1 2 Weapon 1 | 1 1 1 1 1 Tool/Special . | . . . . . Unused Backups 5 | . . . . 5 Power 1 | . . . . 1 Propulsion 1 | . . . . 1 Utility 3 | . . . . 3 Weapon . | . . . . . Tool/Special . | . . . . . Average Slot Usage (%) 89 | . 96 92 85 88 Engine 14 | . 14 14 14 14 Treads 28 | . 28 28 28 28 Device 1 | . . . . 2 Storage 14 | . 14 14 14 14 Protection 2 | . 10 7 . . Energy Gun 13 | . 14 14 13 13 Ballistic Gun 14 | . 14 14 14 14 Peak Build Rating 15 | 6 7 7 7 15 Average Rating 7 | 2 6 6 7 8 On Entrance 5 | . 6 7 7 7 Naked Turns . | . . . . . Heaviest Build 34 | 14 17 17 14 34 Greatest Support 40 | 40 40 40 40 40 Greatest Overweight (x) . | . . . . . Average Overweight (x) . | . . . . . Largest Inventory Capacity 15 | 8 8 8 8 15 Average Capacity 8 | 5 8 8 8 9 Most Carried 10 | 5 4 6 7 10 Average Carried 6 | 3 2 4 6 7 Final Capacity 15 | 8 8 8 8 15 Final Carried 10 | 2 4 6 6 10 Class Distribution -------------------- 100% | Mutant Dominant Class ---------------- Mutant | -10/Materials Mutant | -10/Mines Mutant | -10/Subcaves Mutant | -7/Scraptown Resources | -11 -10 -10 -10 -7 ----------- Run | Yrd Mat Min Sub Scr Matter Collected 370 | 204 60 . 8 98 Remotely . | . . . . . Salvage Created 262 | . 167 95 . . Parts 14 | . 11 3 . . Haulers Intercepted . | . . . . . Recyclers Shooed . | . . . . . Parts Field Recycled . | . . . . . Retrieved Matter . | . . . . . Parts Self-Destructed . | . . . . . Prevented . | . . . . . Kills | -11 -10 -10 -10 -7 ------- Run | Yrd Mat Min Sub Scr Combat Hostiles Destroyed 9 | . 7 2 . . Guns 9 | . 7 2 . . Classes Destroyed 2 | . 2 . . . Swarmer 4 | . 4 . . . Grunt 5 | . 3 2 . . Best Kill Streak 3 | . 3 2 . . Combat Bots Only 3 | . 3 2 . . Max Kills in Single Turn 1 | . 1 1 . . Gunslinging . | . . . . . Exploded . | . . . . . Melee . | . . . . . Uniques/NPCs Destroyed . | . . . . . Combat | -11 -10 -10 -10 -7 -------- Run | Yrd Mat Min Sub Scr Hostile Shots Fired 77 | . 33 11 . 33 Missed 20 | . 8 3 . 9 Hits 57 | . 25 8 . 24 Melee 7 | . . . . 7 Projectile 50 | . 25 8 . 17 Critical Strikes 1 | . 1 . . . Damage Taken 674 | . 242 140 . 292 Core 104 | . 42 . . 62 Absorbed by Shields . | . . . . . Regen/Repaired (Parts) 249 | . . . . 249 Core Remaining (%) 100 | 100 . . . . Volleys Fired 26 | . 18 7 . 1 Largest 2 | . 2 2 . 2 Hottest 70 | . 70 70 . 70 Shots Fired 52 | . 36 14 . 2 Gun 52 | . 36 14 . 2 Cannon . | . . . . . Launcher . | . . . . . Special . | . . . . . Kinetic 26 | . 18 7 . 1 Thermal 26 | . 18 7 . 1 Explosive . | . . . . . Electromagnetic . | . . . . . Robot Hit Streak 13 | . 13 3 . . Robot Miss Streak 2 | . 2 1 . . Penetration Max . | . . . . . Secondary Targets 2 | . 1 1 . . Max Gunslinging Chain 1 | . 1 1 . . Shots Hit Robots 34 | . 24 9 1 . Core Hits 15 | . 10 5 . . Critical Kills . | . . . . . Critical Parts Destroyed . | . . . . . Critical Strikes 2 | . 1 1 . . Burn 2 | . 1 1 . . Melee Attacks 2 | . . . 1 1 Impact . | . . . . . Slashing 1 | . . . . 1 Piercing . | . . . . . Sneak Attacks 1 | . . . 1 . Combat Hostiles . | . . . . . Follow-up Attacks . | . . . . . Damage Inflicted 413 | . 300 113 . . Guns 413 | . 300 113 . . Cannons . | . . . . . Explosions . | . . . . . Melee . | . . . . . Ramming . | . . . . . Kinetic 202 | . 140 62 . . Thermal 211 | . 160 51 . . Explosive . | . . . . . Electromagnetic . | . . . . . Impact . | . . . . . Slashing . | . . . . . Piercing . | . . . . . Highest Corruption . | . . . . . Average Corruption . | . . . . . Corruption Purged . | . . . . . Corruption Blocked . | . . . . . Overload Shots . | . . . . . Overflow Damage . | . . . . . Projectiles . | . . . . . Explosions . | . . . . . Melee . | . . . . . Knockbacks . | . . . . . Impact . | . . . . . Kinetic . | . . . . . Secondary . | . . . . . Self-Inflicted Damage . | . . . . . Shots . | . . . . . Rammed . | . . . . . Targets Rammed . | . . . . . Kicked . | . . . . . Crushed . | . . . . . Highest Temperature 252 | . 252 150 . 9 Average Temperature 86 | . 92 76 . 6 Received Heat Transfer 186 | . 90 78 . 18 Siege Activations . | . . . . . Martial Activations . | . . . . . Shielding Activations . | . . . . . Robots Disrupted . | . . . . . Combat Hostiles . | . . . . . Robots Corrupted . | . . . . . Combat Hostiles . | . . . . . Parts Fried . | . . . . . Impact Corruptions . | . . . . . Robots Melted . | . . . . . Combat Hostiles . | . . . . . Parts Melted 4 | . 3 1 . . Heat Transferred 777 | . 555 222 . . Parts Sabotaged . | . . . . . Parts Stolen . | . . . . . Parts Stripped . | . . . . . Power Chain Reactions . | . . . . . Alert | -11 -10 -10 -10 -7 ------- Run | Yrd Mat Min Sub Scr Maximum Alert Level . | . . . . . Low Security (%) 100 | 100 100 100 . . Level 1 . | . . . . . Level 2 . | . . . . . Level 3 . | . . . . . Level 4 . | . . . . . Level 5 . | . . . . . High Security . | . . . . . Max Security . | . . . . . Peak Influence 110 | . 110 33 . . Initial 23 | . . 23 . . Average 33 | . 41 17 . . Influence Increases 231 | . 166 65 . . Destroy 0b10 Robot/C 180 | . 140 40 . . Destroy Leader 30 | . 20 10 . . Successful Hack 6 | . 6 . . . Lose Combat Pursuer 15 | . . 15 . . Influence Decreases 231 | . 106 107 18 . Entered New Map 47 | . . 37 10 . Time Decay 174 | . 106 60 8 . Lost Part 10 | . . 10 . . Squads Dispatched 1 | . 1 . . . Investigation 1 | . 1 . . . Extermination . | . . . . . Reinforcement . | . . . . . Assault . | . . . . . Garrison . | . . . . . Intercept . | . . . . . Searches Triggered . | . . . . . Construction Impeded . | . . . . . Haulers Reinforced . | . . . . . Active Scanning Responses . | . . . . . Cargo Convoy Interrupts . | . . . . . Stealth | -11 -10 -10 -10 -7 --------- Run | Yrd Mat Min Sub Scr Distress Signals 1 | . 1 . . . Communications Jammed . | . . . . . Distress Signals . | . . . . . Times Spotted 23 | . 9 3 . 11 Peak Tracking Total 20 | . 3 2 . 20 Tactical Retreats 2 | . . 1 . 1 Traps | -11 -10 -10 -10 -7 ------- Run | Yrd Mat Min Sub Scr Traps Triggered 1 | . 1 . . . Indirectly . | . . . . . Trap Hack Attempts . | . . . . . Triggered . | . . . . . Disarmed . | . . . . . Reprogrammed . | . . . . . Reused . | . . . . . Traps Extracted . | . . . . . Installed . | . . . . . Triggered . | . . . . . Machines | -11 -10 -10 -10 -7 ---------- Run | Yrd Mat Min Sub Scr Machines Disabled . | . . . . . Max in Single Turn . | . . . . . Machines Repaired . | . . . . . Machines Dismantled . | . . . . . Machines Sabotaged . | . . . . . Overloaded Fab Kills . | . . . . . Hacking | -11 -10 -10 -10 -7 --------- Run | Yrd Mat Min Sub Scr Machines Accessed 8 | . 5 . . 3 Terminals 5 | . 5 . . . Fabricators . | . . . . . Repair Stations . | . . . . . Recycling Units . | . . . . . Scanalyzers . | . . . . . Garrison Access . | . . . . . Total Hacks 48 | . 18 . . 30 Successful 32 | . 2 . . 30 Failed 16 | . 16 . . . Catastrophic 5 | . 5 . . . Database Lockouts . | . . . . . Manual 18 | . 18 . . . Terminals 18 | . 18 . . . Fabricators . | . . . . . Repair Stations . | . . . . . Recycling Units . | . . . . . Scanalyzers . | . . . . . Garrison Access . | . . . . . Terminal Hacks 31 | . 1 . . 30 Record 30 | . . . . 30 Registered Components 1 | . 1 . . . Fabricator Hacks . | . . . . . Repair Station Hacks . | . . . . . Recycling Unit Hacks . | . . . . . Scanalyzer . | . . . . . Garrison Access Hacks . | . . . . . Unauthorized Hacks 1 | . 1 . . . Terminals 1 | . 1 . . . Operators 1 | . 1 . . . Fabricators . | . . . . . Repair Stations . | . . . . . Recycling Units . | . . . . . Scanalyzers . | . . . . . Garrison Access . | . . . . . Data Cores Recovered . | . . . . . Used . | . . . . . Hacking Detections 5 | . 5 . . . Full Trace Events 1 | . 1 . . . Feedback Events . | . . . . . Feedback Blocked . | . . . . . Robot Schematics Acquired . | . . . . . Robots Built . | . . . . . Authchips . | . . . . . Time . | . . . . . Total Robot Build Rating . | . . . . . Part Schematics Acquired . | . . . . . Parts Built . | . . . . . Authchips . | . . . . . Time . | . . . . . Total Part Build Rating . | . . . . . Parts Repaired . | . . . . . Time . | . . . . . Parts Recycled . | . . . . . Recycled Matter . | . . . . . Retrieved Matter . | . . . . . Retrieved Components . | . . . . . Parts Scanalyzed . | . . . . . Part Schematics Acquired . | . . . . . Parts Damaged . | . . . . . Bothacking | -11 -10 -10 -10 -7 ------------ Run | Yrd Mat Min Sub Scr Used RIF Installer . | . . . . . Robots Hacked 1 | . . . 1 . Non-combat 1 | . . . 1 . Combat . | . . . . . Robot Hacks Applied 1 | . . . 1 . parse_system 1 | . . . 1 . Relay Couplers Released . | . . . . . Fabnet Peak Effective % . | . . . . . Robots Rewired . | . . . . . Allies Hacked . | . . . . . Hacks Repelled . | . . . . . Allies | -11 -10 -10 -10 -7 -------- Run | Yrd Mat Min Sub Scr Total Allies . | . . . . . Largest Group . | . . . . . Highest-Rated Group . | . . . . . Highest-Rated Ally . | . . . . . Total Orders . | . . . . . Ally Attacks . | . . . . . Total Damage . | . . . . . Kills . | . . . . . Allies Corrupted . | . . . . . Allies Melted . | . . . . . Intel | -11 -10 -10 -10 -7 ------- Run | Yrd Mat Min Sub Scr Active Infowar (turns) . | . . . . . Robot Analysis Total . | . . . . . Derelict Logs Recovered 1 | . . . 1 . Drone Launches . | . . . . . Drone Recoveries . | . . . . . Exploration | -11 -10 -10 -10 -7 ------------- Run | Yrd Mat Min Sub Scr Turns Passed 2250 | 32 367 136 318 1397 Spaces Moved 1358 | 38 194 72 191 863 Core 37 | 37 . . . . Treads 1321 | 1 194 72 191 863 Legs . | . . . . . Wheels . | . . . . . Hover . | . . . . . Flight . | . . . . . Fastest Speed 50 | 50 160 160 160 160 Average Speed 157 | 52 160 160 160 160 Slowest Speed 160 | 160 160 160 160 160 Overloaded Moves . | . . . . . Propulsion Burnouts . | . . . . . Robots Hopped . | . . . . . Potential Cave-ins . | . . . . . Cave-ins Triggered . | . . . . . Exploration Rate (%) 28 | 4 44 19 15 62 Regions Visited 4 Branch Regions 3 Pre-discovered Areas 5 | . . . 1 4 Known Exits Taken . | . . . . . Unknown Exits Taken 4 | 1 1 1 1 . Scrap Searched 2 | . . . . 2 Spaces Dug 1 | . . . . 1 Terrain Destroyed 1 | . . . . 1 Melee 1 | . . . . 1 Projectile . | . . . . . AOE . | . . . . . Terrain Rammed . | . . . . . Walls Destroyed . | . . . . . Machines Disabled . | . . . . . Actions | -11 -10 -10 -10 -7 --------- Run | Yrd Mat Min Sub Scr Total 1421 | 49 215 79 203 875 Wait 6 | . . . 5 1 Move 1354 | 37 193 71 190 863 Hop . | . . . . . Pick Up 17 | 6 3 1 2 5 Fast Attach 2 | 2 . . . . Attach 6 | 4 1 . . 1 Detach . | . . . . . Swap 5 | . . . 3 2 Drop 3 | . . . 2 1 Fire 26 | . 18 7 . 1 Melee 2 | . . . 1 1 Ram . | . . . . . Kick . | . . . . . Crush . | . . . . . Escape Stasis . | . . . . . Rewire . | . . . . . Trap . | . . . . . Miscellaneous . | . . . . . Route ------- -11/Scrapyard -10/Materials -10/Mines -10/Subcaves (discovered 2 exits: [*Mat] / *Scr) -7/Scraptown (discovered 1 exit: Fac) History --------- Turn | Location | Event 13 | -11/Scrapyard | Discovered new exit (range 16) 33 | -11/Scrapyard | Entered Materials 318 | -10/Materials | Build established: Mutant 335 | -10/Materials | Discovered new exit (range 14) 400 | -10/Materials | Entered Mines 509 | -10/Mines | Found a Scrap Suit stashed away for nefarious purposes 513 | -10/Mines | Found Scrap Suit 530 | -10/Mines | Discovered new exit (range 6) 536 | -10/Mines | Entered Subcaves 537 | -10/Subcaves | Approached by a straggling Scientist 771 | -10/Subcaves | Learned Materials garrison access intel 818 | -10/Subcaves | Learned location of Zion (-6) 818 | -10/Subcaves | Met a Zionite searching for "candidates" 829 | -10/Subcaves | Discovered new exit (range 6) 853 | -10/Subcaves | Scientist uncovered a shortcut to Scraptown 854 | -10/Subcaves | Entered Scraptown 1094 | -7/Scraptown | Learned location of Extension (-6) 1400 | -7/Scraptown | Visited Assassins FH 1440 | -7/Scraptown | Visited Comm Corps 1502 | -7/Scraptown | Visited Observation Area 1566 | -7/Scraptown | Visited Shadow of the Wyrm 1635 | -7/Scraptown | Visited Symbiants 1721 | -7/Scraptown | Visited CR-KLE's Repair Center 1733 | -7/Scraptown | CR-KLE repaired 5 parts 2113 | -7/Scraptown | Visited UFD Registry 2113 | -7/Scraptown | Registered with UFD as "Steelpod" 2165 | -7/Scraptown | Visited Cartography Club 2210 | -7/Scraptown | Attacked by Scraptown defenders 2214 | -7/Scraptown | Learned location of Warlord (-4) 2214 | -7/Scraptown | Learned location of Testing (-3) 2214 | -7/Scraptown | Learned 8 Materials zone layouts 2214 | -7/Scraptown | Learned 12 Materials zone layouts 2214 | -7/Scraptown | Learned 8 Factory zone layouts 2214 | -7/Scraptown | Learned 20 Factory zone layouts 2214 | -7/Scraptown | Learned 8 Lower Caves zone layouts 2214 | -7/Scraptown | Learned 16 Proximity Caves zone layouts 2214 | -7/Scraptown | Learned 4 Hub_04(d) zone layouts 2214 | -7/Scraptown | Learned location of 2 exits from Proximity Caves 2214 | -7/Scraptown | Learned 8 Upper Caves zone layouts 2214 | -7/Scraptown | Learned location of 2 exits from Research 2214 | -7/Scraptown | Identified exit to Factory 2214 | -7/Scraptown | Learned 12 Research zone layouts 2251 | -7/Scraptown | Self-destructed Last Messages --------------- Research exits. Data stored: Research exits (x2). >>Record "ACCESS/QUA=1" Quarantine entrance. Data stored: Quarantine entrances (x1). >>Record "ACCESS/FAC=1" Factory entrance. Loading 1 Factory entrance... >>Record "ZONES/RES=12" Research zones. Data stored: Research zone layouts (x12). >>Record "DEPTH_ID/EXT" Extension location. World map confirmed: -6/Extension. 02216_ Penetrated by Bolt. 02222_ Bolt penetrates Wall. 02237_ Penetrated by Bolt. 02244_ Imp. Shield Generator destroyed. 02245_ Penetrated by Bolt. 02250_ Bolt penetrates Machine. Map ----- +----------------------------------------------------+ | ?????????????????????????????????????????????????? | | ?????????????????????????????????????????????????? | | ?????????????????????????????????????????????????? | | ?????????????????????????????????????????????????? | | ?????????????????????????????????????????????????? | | ?????????????????????????????????????????????????? | | ?????????????????????????????????????????????????? | | ?????????????????????????????????????????????????? | | ?????????????????????????????????????????????????? | | ?????????????????????????????????????????????????? | | ?????????????????????????????????????????????????? | | ????????????????????"???"????????????????????????? | | ??##???????????????? "&" ????????????????????????? | | ??# ??????????????? """ ???????????????????????? | | ??# ##?????????????" "???????????????????????? | | ??? ###??????????=" "=??????????????????????? | | ???###X#???????????" "???????????????????????? | | #### #"#??????????? ???????????????????????? | | # #??????????"" ""??????????????????????? | | ###### #######?????" "???????????????????????? | | # #?????? ????????????????????????? | | # #??????? ?????????????????????????? | | ########## ###???????# #?????????????????????????? | | ?????##### ########### ##########????????????????? | | ?????#"""" """"""""""" """"""""""" ""????????????? | | ?????#" b x x @ ????????? | | ?????#" h ????????? | | ?????#" ????????? | | ?????#" ?????????? | | ?#####" ?????????? | | ?#"""" """""""""""""""""""""""""""??????????? | | ?#"""" """""""""""""""""""""""??????????????? | | ?#"""" ""###### #############??????????????? | | ?#"""" ""#???? ??????????????????????????? | | ?#"""" ""#???? ??????????????????????????? | | ?#"""" ""#????" "??????????????????????????? | | "#"""" ""#? "?? ???????????????????????????? | | "#"""" ""# " ?????????????????????????????? | | ######" "" ?????????????????????????????? | | ?????#" "" "????????????????????????????? | | ######" ""# " ??????????????????????????????? | | ""#??????????????????????????????????? | | ""#??????????????????????????????????? | | ""#??????????????????????????????????? | | ""#??????????????????????????????????? | | ""#??????????????????????????????????? | | """"?????????????????????????????????? | | """"?????????????????????????????????? | | ?????????????????????????????????? | | ?????????????????????????????????? | +----------------------------------------------------+ Best States ------------- Heat Dissipation 25 Energy Generation 10 Energy Capacity 250 Matter Stores 300 Matter Capacity 300 Sight Range 16 Terrain Scan Density 10 Armor Coverage 150 Evasion (%) 50 Recoil Reduction 2 Item Schematics ----------------- None Robot Schematics ------------------ None Fabricated ------------ Nothing Repaired ---------- Nothing Alien Tech Used ----------------- None Achievements -------------- None Challenges ------------ None Game ------ Seed IonNavigationNullifier Manual? 0 Play Time 00:15:35 Cumulative 128.6 hours Start 2025.05.18 @ 21:42:47 End 2025.05.18 @ 21:56:52 Sessions 1 Manual Loads 0 Difficulty Rogue Special Mode None Game No. 195 Rogue 192 Adventurer 3 Explorer 0 Win Type - Total 0 Types 0/0/0/0/0/0/0/0/0/0 Lore% 32 Gallery% 52 Achievement% 42 Wizard Run 0 Options --------- Layout 0 ASCII 0 Keyboard 0 Movement Mouse Keybinds 0 Fullscreen 2 Font 18/SmallcapsGlow Map View 76x50 Zoom Use 0% Tactical HUD 1 Map Filters NONE Filters NONE Steam 1 RUN: d4b4801b-b019-41a6-a087-3edb88581242